Cogmind - Beta 17 @@@ ROGUE MODE // 2026.07.04 @ 09:26:29 Player: ToBeDefined Result: Core melted Performance ------------- Evolutions (2) 1000 Regions Visited (3) 600 Robots Destroyed (51) 255 Value Destroyed (1368) 1368 Prototype IDs (1) 20 Alien Tech Used (0) 0 Bonus (0) 0 TOTAL SCORE: 3243 Bonus ------- None Cogmind --------- Core Integrity 0/550 Matter 169/300 Energy 96/100 System Corruption 6% Temperature Critical (548) Movement Treading (163) Location -8/Materials Parts ------- > --- POWER (1) -------- (None) > --- PROPULSION (4) --- Light Treads Light Treads Armored Treads Carbon-fiber Leg > --- UTILITY (3) ------ Heat Sink Cooling System > --- WEAPON (3) ------- Particle Gun > --- INVENTORY (5) ---- Deuterium Engine Light Nuclear Core Medium Armor Plating Hardened Heavy Armor Plating Peak State ------------ > --- POWER ------------ Deuterium Engine > --- PROPULSION ------- Light Treads Light Treads Armored Treads Carbon-fiber Leg > --- UTILITY ---------- Cooling System Large Storage Unit Medium Armor Plating > --- WEAPON ----------- Particle Gun Particle Cannon Particle Cannon > --- INVENTORY -------- Deuterium Engine Light Nuclear Core Heat Sink Heat Sink Light Armor Plating Medium Armor Plating Medium Armor Plating Hardened Heavy Armor Plating Improved Light Armor Plating Dynamic Insulation System EM Shotgun Particle Gun Grenade Launcher Mining Laser [Rating: 25] Favorites ----------- Power Ion Engine Engine Ion Engine Power Core Light Nuclear Core Propulsion Light Treads Treads Light Treads Leg Carbon-fiber Leg Utility Small Storage Unit Device Cooling System Storage Small Storage Unit Protection Utility Shielding Weapon Advanced Beam Cannon Energy Gun Medium Laser Energy Cannon Advanced Beam Cannon Ballistic Gun Assault Rifle Ballistic Cannon Improved Light Cannon Launcher Grenade Launcher Special Weapon Mining Laser Build | -11 -10 -10 -8 ------- Run | Yrd Mat Sub Mat Slots Evolved 4 | . . . 4 Power . | . . . . Propulsion 2 | . . . 2 Utility 1 | . . . 1 Weapon 1 | . . . 1 Parts Attached 44 | 8 17 2 17 Power 11 | 2 6 1 2 Engine 10 | 2 6 1 1 Core 1 | . . . 1 Reactor . | . . . . Propulsion 8 | 2 1 . 5 Treads 6 | 2 1 . 3 Leg 2 | . . . 2 Wheel . | . . . . Hover . | . . . . Flight . | . . . . Utility 12 | 2 7 . 3 Device 4 | 1 2 . 1 Storage 4 | 1 3 . . Processor . | . . . . Hackware . | . . . . Protection 4 | . 2 . 2 Artifact . | . . . . Weapon 13 | 2 3 1 7 Energy Gun 2 | 1 . . 1 Energy Cannon 7 | . 2 1 4 Ballistic Gun 1 | 1 . . . Ballistic Cannon 1 | . . . 1 Launcher 1 | . 1 . . Special Weapon 1 | . . . 1 Impact Weapon . | . . . . Slashing Weapon . | . . . . Piercing Weapon . | . . . . Special Melee Weapon . | . . . . Unidentified Prototypes 1 | . 1 . . Parts Lost 17 | . . 2 15 Power 3 | . . 1 2 Propulsion 3 | . . . 3 Utility 4 | . . . 4 Weapon 7 | . . 1 6 Highest Loss Streak 9 | . . 2 9 To Critical Strikes . | . . . . Average Backups 10 | 7 10 14 10 Power 1 | 1 1 . . Propulsion 1 | 3 1 1 . Utility 2 | . 1 5 5 Weapon 5 | . 6 7 4 Tool/Special . | . . . . Unused Backups 28 | 1 13 . 14 Power 3 | 1 1 . 1 Propulsion 7 | . 7 . . Utility 9 | . 2 . 7 Weapon 9 | . 3 . 6 Tool/Special . | . . . . Average Slot Usage (%) 95 | . 99 98 75 Engine 12 | . 14 14 4 Treads 26 | . 27 28 17 Device 8 | . 8 14 7 Storage 12 | . 14 14 8 Protection 5 | . 5 . 6 Energy Gun 3 | . 3 . 3 Energy Cannon 20 | . 20 26 18 Ballistic Gun 2 | . 3 . . Peak Build Rating 25 | 7 14 14 25 Average Rating 11 | 6 11 13 17 On Entrance 8 | . 7 14 14 Avg Prop Armor Cover (%) 3 | . . . 3 Naked Turns . | . . . . Heaviest Build 49 | 15 35 35 49 Greatest Support 60 | 40 40 40 60 Greatest Overweight (x) 11 | . 1 . 11 Average Overweight (x) . | . . . . Largest Inventory Capacity 20 | 8 20 15 15 Average Capacity 11 | 7 10 15 14 Most Carried 15 | 8 15 15 15 Average Carried 10 | 7 10 14 11 Final Capacity 15 | 8 15 15 5 Final Carried 15 | 8 15 13 5 Class Distribution -------------------- 85% | Mutant 7% | Scavenger-Tank 3% | Gunner Dominant Class ---------------- Mutant | -10/Materials Mutant | -10/Subcaves Scavenger-Tank | -8/Materials Resources | -11 -10 -10 -8 ----------- Run | Yrd Mat Sub Mat Matter Collected 839 | 346 256 15 222 Remotely . | . . . . Salvage Created 1903 | 264 1019 72 548 Parts 111 | 22 65 4 20 Haulers Intercepted 3 | . 2 . 1 Recyclers Shooed . | . . . . Parts Field Recycled . | . . . . Retrieved Matter . | . . . . Parts Self-Destructed . | . . . . Prevented . | . . . . Parts Restored . | . . . . Kills | -11 -10 -10 -8 ------- Run | Yrd Mat Sub Mat Combat Hostiles Destroyed 31 | . 19 2 10 Guns 4 | . 2 . 2 Cannons 26 | . 16 2 8 AOE 1 | . 1 . . Classes Destroyed 12 | 2 6 1 3 Builder 1 | . 1 . . Tunneler 10 | 9 1 . . Hauler 3 | . 2 . 1 Recycler 2 | 1 1 . . Operator 1 | . 1 . . Watcher 3 | . 3 . . Swarmer 3 | . 3 . . Grunt 22 | . 16 . 6 Sentry 2 | . . . 2 Hunter 1 | . . . 1 Heavy 1 | . . . 1 Subdweller 2 | . . 2 . Best Kill Streak 5 | 4 5 2 3 Combat Bots Only 3 | . 3 2 3 Max Kills in Single Turn 2 | 1 2 1 1 Gunslinging . | . . . . Exploded 1 | . 1 . . Melee . | . . . . Uniques/NPCs Destroyed . | . . . . Combat | -11 -10 -10 -8 -------- Run | Yrd Mat Sub Mat Hostile Shots Fired 222 | . 86 20 116 Missed 59 | . 26 4 29 Hits 163 | . 60 16 87 Projectile 163 | . 60 16 87 AOE 1 | . 1 . . Critical Strikes 8 | . 2 . 6 Damage Taken 3463 | . 701 334 2428 Core 871 | . 133 87 651 Absorbed by Shields . | . . . . Redirected to Shielding 11 | . 11 . . Core Remaining (%) 56 | 100 . 12 . Volleys Fired 149 | 22 73 10 44 Largest 3 | 2 2 2 3 Hottest 204 | 70 136 136 204 Shots Fired 308 | 44 137 18 109 Gun 88 | 44 24 . 20 Cannon 217 | . 112 18 87 Launcher 1 | . 1 . . Special 2 | . . . 2 Kinetic 42 | 22 12 . 8 Thermal 265 | 22 124 18 101 Explosive 1 | . 1 . . Electromagnetic . | . . . . Robot Hit Streak 27 | 5 9 26 27 Robot Miss Streak 5 | 2 5 . 4 Penetration Max . | . . . . Secondary Targets . | . . . . Shots Hit Robots 193 | 27 81 17 68 Core Hits 66 | 11 31 4 20 Critical Kills 1 | . 1 . . Critical Parts Destroyed . | . . . . Critical Strikes 5 | . 3 . 2 Burn 4 | . 2 . 2 Meltdown 1 | . 1 . . Melee Attacks . | . . . . Impact . | . . . . Slashing . | . . . . Piercing . | . . . . Sneak Attacks . | . . . . Combat Hostiles . | . . . . Follow-up Attacks . | . . . . Damage Inflicted 3744 | 324 1648 349 1423 Guns 772 | 324 216 . 232 Cannons 2919 | . 1380 349 1190 Explosions 52 | . 52 . . Melee . | . . . . Ramming 1 | . . . 1 Kinetic 372 | 137 129 . 106 Thermal 3319 | 187 1467 349 1316 Explosive 52 | . 52 . . Electromagnetic . | . . . . Impact . | . . . . Slashing . | . . . . Piercing . | . . . . Highest Corruption 6 | . . . 6 Average Corruption 6 | . . . 6 Corruption Purged . | . . . . Corruption Blocked . | . . . . Effects 13 | . . . 13 Message Errors 1 | . . . 1 Matter Fused 6 | . . . 6 Energy Discharges 1 | . . . 1 Parts Rejected 1 | . . . 1 Data Loss (minor) 2 | . . . 2 Alerts 1 | . . . 1 Weapon Failures 1 | . . . 1 Overload Shots . | . . . . Overflow Damage 17 | . 7 . 10 Projectiles 17 | . 7 . 10 Explosions . | . . . . Melee . | . . . . Knockbacks 1 | . . . 1 Impact . | . . . . Kinetic 1 | . . . 1 Secondary . | . . . . Self-Inflicted Damage . | . . . . Shots . | . . . . Rammed 1 | . . . 1 Targets Rammed 1 | . . . 1 Kicked . | . . . . Crushed . | . . . . Highest Temperature 679 | 36 435 . 679 Average Temperature 123 | 13 113 . 195 Received Heat Transfer 963 | . 339 48 576 Effects 21 | . 1 . 20 Shutdowns 2 | . . . 2 Energy Bleed 1 | . . . 1 Interference 1 | . . . 1 Matter Decay 4 | . . . 4 Damage (minor) 2 | . 1 . 1 Damage (major) 9 | . . . 9 Damage (core) 2 | . . . 2 Siege Activations . | . . . . Martial Activations . | . . . . Shielding Activations . | . . . . Robots Disrupted . | . . . . Combat Hostiles . | . . . . Robots Corrupted . | . . . . Combat Hostiles . | . . . . Parts Fried . | . . . . Impact Corruptions . | . . . . Robots Melted 1 | . 1 . . Combat Hostiles . | . . . . Parts Melted 12 | . 6 1 5 Heat Transferred 6734 | 555 2886 629 2664 Parts Sabotaged . | . . . . Parts Stolen . | . . . . Parts Stripped . | . . . . Power Chain Reactions . | . . . . Alert | -11 -10 -10 -8 ------- Run | Yrd Mat Sub Mat Maximum Alert Level 1 | . 1 . . Low Security (%) 89 | 100 84 . 100 Level 1 10 | . 15 . . Level 2 . | . . . . Level 3 . | . . . . Level 4 . | . . . . Level 5 . | . . . . High Security . | . . . . Max Security . | . . . . Peak Influence 231 | 15 231 . 75 Initial 17 | . . . 17 Average 78 | 1 111 . 16 Influence Increases 963 | 50 613 . 300 Destroy 0b10 Robot/C 580 | . 380 . 200 Destroy 0b10 Robot/NC 100 | 50 45 . 5 Destroy Leader 142 | . 80 . 62 Successful Hack 21 | . 21 . . Disable Machine 45 | . 30 . 15 Destroy Structure 15 | . 12 . 3 Lose Combat Pursuer 60 | . 45 . 15 Influence Decreases 935 | 50 413 166 306 Entered New Map 113 | . . 96 17 Time Decay 692 | 50 413 50 179 Lost Part 130 | . . 20 110 Squads Dispatched 5 | . 3 . 2 Investigation 3 | . 3 . . Extermination . | . . . . Reinforcement 2 | . . . 2 Assault . | . . . . Garrison . | . . . . Intercept . | . . . . Searches Triggered . | . . . . Construction Impeded . | . . . . Haulers Reinforced . | . . . . Active Scanning Responses . | . . . . Cargo Convoy Interrupts . | . . . . Stealth | -11 -10 -10 -8 --------- Run | Yrd Mat Sub Mat Distress Signals . | . . . . Communications Jammed . | . . . . Distress Signals . | . . . . Times Spotted 44 | . 29 2 13 Peak Tracking Total 5 | . 3 2 5 Tactical Retreats 4 | . 3 . 1 Traps | -11 -10 -10 -8 ------- Run | Yrd Mat Sub Mat Traps Triggered 4 | . 4 . . Indirectly . | . . . . Trap Hack Attempts . | . . . . Triggered . | . . . . Disarmed . | . . . . Reprogrammed . | . . . . Reused . | . . . . Traps Extracted . | . . . . Installed . | . . . . Triggered . | . . . . Machines | -11 -10 -10 -8 ---------- Run | Yrd Mat Sub Mat Machines Disabled 3 | . 2 . 1 Max in Single Turn 1 | . 1 . 1 Machines Repaired . | . . . . Machines Dismantled . | . . . . Machines Sabotaged . | . . . . Overloaded Fab Kills . | . . . . Hacking | -11 -10 -10 -8 --------- Run | Yrd Mat Sub Mat Machines Accessed 13 | . 10 . 3 Terminals 11 | . 8 . 3 Fabricators . | . . . . Repair Stations . | . . . . Recycling Units 2 | . 2 . . Scanalyzers . | . . . . Garrison Access . | . . . . Total Hacks 33 | . 23 . 10 Successful 8 | . 5 . 3 Failed 25 | . 18 . 7 Catastrophic 10 | . 5 . 5 Database Lockouts . | . . . . Manual 23 | . 17 . 6 Terminals 30 | . 20 . 10 Fabricators . | . . . . Repair Stations . | . . . . Recycling Units 3 | . 3 . . Scanalyzers . | . . . . Garrison Access . | . . . . Terminal Hacks 7 | . 4 . 3 Part Schematic 2 | . 2 . . Branch Access Points 1 | . 1 . . Alert Level 1 | . . . 1 Registered Components 2 | . 1 . 1 Zone Layout 1 | . . . 1 Fabricator Hacks . | . . . . Repair Station Hacks . | . . . . Recycling Unit Hacks 1 | . 1 . . Retrieve Components 1 | . 1 . . Scanalyzer . | . . . . Garrison Access Hacks . | . . . . Unauthorized Hacks . | . . . . Terminals . | . . . . Fabricators . | . . . . Repair Stations . | . . . . Recycling Units . | . . . . Scanalyzers . | . . . . Garrison Access . | . . . . Data Cores Recovered 1 | . 1 . . Used 1 | . 1 . . Hacking Detections 13 | . 10 . 3 Full Trace Events 1 | . 1 . . Feedback Events . | . . . . Feedback Blocked . | . . . . Robot Schematics Acquired . | . . . . Robots Built . | . . . . Authchips . | . . . . Time . | . . . . Total Robot Build Rating . | . . . . Part Schematics Acquired 2 | . 2 . . Parts Built . | . . . . Authchips . | . . . . Time . | . . . . Total Part Build Rating . | . . . . Part Studies Acquired . | . . . . Parts Repaired . | . . . . Time . | . . . . Parts Recycled . | . . . . Recycled Matter . | . . . . Retrieved Matter . | . . . . Retrieved Components 10 | . 10 . . Parts Scanalyzed . | . . . . Part Schematics Acquired . | . . . . Parts Damaged . | . . . . Bothacking | -11 -10 -10 -8 ------------ Run | Yrd Mat Sub Mat Used RIF Installer . | . . . . Robots Hacked . | . . . . Non-combat . | . . . . Combat . | . . . . Robot Hacks Applied . | . . . . Relay Couplers Released . | . . . . Fabnet Peak Effective % . | . . . . Robots Rewired . | . . . . Allies Hacked . | . . . . Hacks Repelled . | . . . . Allies | -11 -10 -10 -8 -------- Run | Yrd Mat Sub Mat Total Allies . | . . . . Largest Group . | . . . . Highest-Rated Group . | . . . . Highest-Rated Ally . | . . . . Total Orders . | . . . . Ally Attacks . | . . . . Total Damage . | . . . . Kills . | . . . . Allies Corrupted . | . . . . Allies Melted . | . . . . Intel | -11 -10 -10 -8 ------- Run | Yrd Mat Sub Mat Active Infowar (turns) 404 | 384 20 . . Seismic 404 | 384 20 . . Robot Analysis Total . | . . . . Derelict Logs Recovered 1 | . . 1 . Drone Launches . | . . . . Drone Recoveries . | . . . . Exploration | -11 -10 -10 -8 ------------- Run | Yrd Mat Sub Mat Turns Passed 3282 | 498 2156 107 521 Spaces Moved 1420 | 257 978 48 137 Core 6 | 3 . . 3 Treads 1414 | 254 978 48 134 Legs . | . . . . Wheels . | . . . . Hover . | . . . . Flight . | . . . . Fastest Speed 50 | 50 160 160 160 Average Speed 161 | 158 160 160 180 Slowest Speed 600 | 160 240 160 600 Overloaded Moves . | . . . . Propulsion Burnouts . | . . . . Robots Hopped . | . . . . Potential Cave-ins . | . . . . Cave-ins Triggered 1 | . . . 1 Exploration Rate (%) 30 | 5 99 7 12 Regions Visited 3 Branch Regions 1 Pre-discovered Areas 1 | . . 1 . Known Exits Taken . | . . . . Unknown Exits Taken 3 | 1 1 1 . Scrap Searched . | . . . . Spaces Dug 2 | . . . 2 Terrain Destroyed 12 | . 9 . 3 Melee . | . . . . Projectile 3 | . . . 3 AOE 9 | . 9 . . Terrain Rammed . | . . . . Walls Destroyed . | . . . . Machines Disabled . | . . . . Actions | -11 -10 -10 -8 --------- Run | Yrd Mat Sub Mat Total 2110 | 301 1438 60 311 Wait 409 | 5 315 1 88 Move 1417 | 256 977 47 137 Hop . | . . . . Pick Up 49 | 9 26 . 14 Fast Attach 14 | 6 2 . 6 Attach 14 | 1 . 2 11 Detach . | . . . . Swap 25 | 1 19 . 5 Drop 32 | 1 26 . 5 Fire 149 | 22 73 10 44 Melee . | . . . . Ram 1 | . . . 1 Kick . | . . . . Crush . | . . . . Escape Stasis . | . . . . Rewire . | . . . . Trap . | . . . . Miscellaneous . | . . . . Route ------- -11/Scrapyard -10/Materials (discovered 6 exits: [*Mat x3] / *Min x2 / [*Sub]) -10/Subcaves -8/Materials History --------- Turn | Location | Event 32 | -11/Scrapyard | Discovered new exit (range 16) 499 | -11/Scrapyard | Entered Materials 500 | -10/Materials | Build established: Mutant 753 | -10/Materials | Discovered new exit (range 7) 1003 | -10/Materials | Discovered new exit (range 10) 1433 | -10/Materials | Core integrity fell below 50% 1621 | -10/Materials | Identified exit to Mines 1680 | -10/Materials | Discovered new exit (range 3) 2057 | -10/Materials | Discovered new exit (range 15) 2644 | -10/Materials | Discovered new exit (range 8) 2655 | -10/Materials | Entered Subcaves 2729 | -10/Subcaves | Core integrity fell below 20% 2746 | -10/Subcaves | Discovered new exit (range 8) 2762 | -10/Subcaves | Entered Materials 2762 | -8/Materials | Evolved 4 slots: Propulsion x2, Utility x1, Weapon x1 2906 | -8/Materials | Crushed by falling debris 2906 | -8/Materials | Core integrity fell below 50% 2937 | -8/Materials | Lost 9 parts (1p3n2u3w) 2983 | -8/Materials | Core integrity fell below 20% 3284 | -8/Materials | Core melted Last Messages --------------- 03272_ Overheating: Matter decay (-52). 03275_ Overheating: Carbon-fiber Leg damaged (-28). 03275_ Overheating: Heat Sink damaged (-8). 03275_ Overheating: Particle Cannon damaged (-11). 03275_ Overheating: Lgt. Treads damaged (-13). 03278_ Power failure, Deuterium Engine shutdown. 03278_ Overheating: Matter decay (-27). 03278_ Particle Cannon destroyed. 03279_ Overheating: Deuterium Engine damaged (-15). 03280_ Deuterium Engine destroyed. 03281_ G-47 Trooper heat short circuits Imp. Heat Sink. 03281_ G-47 Trooper suffers critical hit (Burn). 03281_ Broken Imp. Heat Sink melted. 03281_ Particle Gun melted. 03281_ G-47 Trooper destroyed. 03284_ Overheating: Core damaged (-110). Map ----- +----------------------------------------------------+ | ??????????????????????????????????????????????? | | ??????????????????????????????????????????????? | | ???????????????????????????????????????#####??? | | ???????????????????????????????????????# #??? | | ???????????????????????????????????????# #??? | | ???????????????????????????????????????# #??? | | ???????????????????????????????????????# #??? | | ?????????????????????????????########### #??? | | ?????????????????????????????# ## #??? | | ?????????????????????????????# ## ##?? | | ?????????????????????????????# # #?? | | ?????????????????????????????# # #?? | | ?????????????????????????????# "" + T #?? | | ?????????????????????????????# %"" # #?? | | ????????????????????????????## %%%" # #?? | | ????????????????????????????## %%## ##?? | | ????????????????????????????## % % ]## #??? | | ??????????????????????################## #??? | | ??????????????????????# [ % =%##?# #??? | | ???????????????!??????# """ =]=%[ ##?# #??? | | ??????????????????????# """ ] * #??# #??? | | ??????????????????????# "" ! ! ##?# #??? | | ??????????????????????# ! ! #?# #??? | | ??????????????????????# "T" ##?# #??? | | ???????????????????###########+######??# #??? | | ???????????????????# [!!@## ####### #??? | | ???????????????????# ][|## #??? | | ???????????????????# %[!## #??? | | ???????????????????# =%[+ #??? | | ???????????????????###m##### ###+#######??? | | ???????????????????? #####+##### #???? | | ???????????????????# # # #???? | | ?????????????????? + *% # # #???? | | ????????????????? # # # "T" #???? | | ???????????????? =# # """"" # """ #???? | | ??????????????? ?## ## """"" # #???? | | ?????????????? ???# ## """"" ########???? | | ?????????????###????# ## #??????????? | | ????????????????????# ## #??????????? | | ????????????????????# ###########???????????? | | ????????????????????# #?????????????????????? | | ????????????????????# #?????????????????????? | | ????????????????????? ??????????????????????? | | ????????????????????? ??????????????????????? | | ????????????????????? ??????????????????????? | | ??????????????????????????????????????????????? | | ??????????????????????????????????????????????? | | ??????????????????????????????????????????????? | | ??????????????????????????????????????????????? | | ??????????????????????????????????????????????? | +----------------------------------------------------+ Best States ------------- Heat Dissipation 53 Energy Generation 14 Energy Capacity 275 Matter Stores 300 Matter Capacity 300 Sight Range 16 Terrain Scan Density 10 Armor Coverage 225 Power Shielding 33 Utility Shielding 33 Evasion (%) 40 Recoil Reduction 3 Item Schematics ----------------- Cargo Storage Unit | -10/Materials | Hacked Lgt. Treads | -10/Materials | Hacked Robot Schematics ------------------ None Fabricated ------------ Nothing Repaired ---------- Nothing Studied --------- None Alien Tech Used ----------------- None Achievements -------------- None Challenges ------------ None Game ------ Seed SubdwellerRegenerativeScythe Manual? 0 Play Time 00:36:28 Cumulative 44.7 hours Start 2026.07.04 @ 08:50:42 End 2026.07.04 @ 09:26:29 Sessions 1 Manual Loads 0 Difficulty Rogue Special Mode None Game No. 45 Rogue 45 Adventurer 0 Explorer 0 Win Type - Total 0 Types 0/0/0/0/0/0/0/0/0/0 Lore% 22 Gallery% 22 Achievement% 18 Wizard Run 0 Options --------- Layout 1 ASCII 0 Keyboard 0 Movement Mouse Keybinds 0 Fullscreen 1 Font 24/Smallcaps Map View 50x35 Zoom Use 0% Tactical HUD 1 Map Filters NONE Filters NONE Steam 1 RUN: 4ec96675-f7e6-4cc4-91e0-17b2a3983143